[Event "Frauenbundesliga 2024-25"]
[Site "Germany"]
[Date "2024.11.16"]
[Round "1.7"]
[White "Peglau, Charis"]
[Black "Klek, Hanna Marie"]
[Result "1-0"]
[Annotator "RC"]
[ECO "A07"]
[WhiteElo "2131"]
[BlackElo "2289"]
[PlyCount "103"]
[EventDate "2024.11.06"]
[EventType "team-tourn"]
[EventCountry "GER"]
[SourceTitle "playchess.com"]
[Source "ChessBase"]
[SourceQuality "1"]
[TimeControl "40/5400+30:1800+30"]

1. Nf3 {[%emt 0:00:03]} d5 {[%emt 0:00:06]} 2. g3 {[%emt 0:00:07]} Bg4 {[%emt 0:00:08]} 3. Bg2 {[%emt 0:00:10]} c6 {[%emt 0:00:08]} 4. d3 {[%emt 0:01:29]} Nf6 {[%emt 0:00:39]} 5. O-O {[%emt 0:00:51]} e6 {[%emt 0:00:07]} 6. Nbd2 {[%emt 0:01:40]} Nbd7 {[%emt 0:02:02]} 7. e4 {[%emt 0:03:34]} dxe4 {[%emt 0:03:34]} 8. dxe4 {[%emt 0:00:22]} Bc5 {[%emt 0:00:59]} 9. Qe2 {[%emt 0:01:28]} e5 {[%emt 0:10:23]} 10. Nb3 {[%emt 0:06:01]} Bb6 {[%emt 0:02:34]} 11. Be3 {[%emt 0:02:54]} Qe7 {[%emt 0:06:29]} 12. a4 {[%emt 0:05:55]} Qb4 {[%emt 0:04:43]} 13. h3 {[%emt 0:04:47]} Bxf3 {[%emt 0:03:03]} 14. Bxf3 {[%emt 0:02:35]} Bxe3 {[%emt 0:10:48]} 15. Qxe3 {[%emt 0:02:13]} h5 {[%emt 0:05:37]} 16. h4 {[%emt 0:01:39]} g6 {[%emt 0:47:10]} 17. Rfd1 {[%emt 0:01:22]} b6 {[%emt 0:00:00]} 18. Ra3 {[%emt 0:09:45]} O-O {[%emt 0:00:00]} 19. c3 {[%emt 0:17:19]} Qe7 {[%emt 0:00:00]} 20. Nc1 {[%emt 0:02:37]} Nc5 {[%emt 0:00:00]} 21. b4 {[%emt 0:02:04]} Ne6 {[%emt 0:00:00]} 22. Nd3 {[%emt 0:00:43]} Nd7 {[%emt 0:00:00]} 23. Bg2 {[%emt 0:02:45]} Rfd8 {[%emt 0:00:00]} 24. Ra2 {[%emt 0:01:17]} Ndf8 {[%emt 0:00:00]} 25. a5 {[%emt 0:04:23]} Qc7 {[%emt 0:00:00]} 26. Rda1 {[%emt 0:02:25]} b5 {[%emt 0:00:00]} 27. Bh3 {[%emt 0:00:43]} Qd6 {[%emt 0:01:42]} 28. Rd1 {[%emt 0:00:54]} c5 {[%emt 0:00:35]} 29. Rad2 {[%emt 0:00:32]} cxb4 {[%emt 0:01:23]} 30. Nxb4 {[%emt 0:07:48]} Qc7 {[%emt 0:00:39]} 31. Nd5 {[%emt 0:00:24]} Qxa5 {[%emt 0:00:38]} 32. Qh6 {[%emt 0:00:24]} Rxd5 {[%emt 0:00:19]} 33. exd5 {[%emt 0:00:55]} Nc5 {[%emt 0:00:31]} 34. Qe3 {[%emt 0:00:28]} Ncd7 {[%emt 0:00:32]} 35. f4 {[%emt 0:05:32]} exf4 {[%emt 0:01:18]} 36. Qxf4 {[%emt 0:01:12]} Qxc3 {[%emt 0:00:32]} 37. Bxd7 {[%emt 0:02:09]} Nxd7 {[%emt 0:00:06]} 38. Rf2 {[%emt 0:00:17]} Rf8 {[%emt 0:00:33]} 39. Kg2 {[%emt 0:01:14]} b4 {[%emt 0:01:27]} 40. Rc1 {[%emt 0:03:27]} Qd3 {[%emt 0:00:48]} 41. Rd2 {[%emt 0:31:38]} Qb5 {[%emt 0:04:34]} 42. g4 {[%emt 0:00:00]} hxg4 {[%emt 0:16:01]} 43. Qxg4 {[%emt 0:00:00]} a5 {[%emt 0:02:49]} 44. Rc7 {[%emt 0:00:00]} Nc5 {[%emt 0:04:53]} 45. h5 {[%emt 0:00:00]} Nd3 {[%emt 0:01:12]} 46. Qe4 {[%emt 0:00:00]} Nc5 {[%emt 0:00:48]} 47. Qe3 {[%emt 0:00:00]} Na6 {[%emt 0:00:49]} 48. Re7 {[%emt 0:00:00]} gxh5 {[%emt 0:00:55]} 49. Qg5+ {[%emt 0:00:00]} Kh7 {[%emt 0:00:09]} 50. Qxh5+ {[%emt 0:00:00]} Kg7 {[%emt 0:00:06]} 51. Qg5+ {[%emt 0:00:15]} Kh7 {[%emt 0:00:07]} 52. Re4 {[%emt 0:00:18]} 1-0

[Event "Frauenbundesliga 2024-25"]
[Site "Germany"]
[Date "2024.11.16"]
[Round "1.8"]
[White "Doluhanova, Evgeniya"]
[Black "Roessler, Ulrike"]
[Result "1-0"]
[Annotator "RC"]
[ECO "A49"]
[WhiteElo "2261"]
[BlackElo "2059"]
[PlyCount "125"]
[EventDate "2024.11.06"]
[EventType "team-tourn"]
[EventCountry "GER"]
[SourceTitle "playchess.com"]
[Source "ChessBase"]
[SourceQuality "1"]
[TimeControl "40/5400+30:1800+30"]

1. Nf3 {[%emt 0:00:18]} Nf6 {[%emt 0:00:05]} 2. e3 {[%emt 0:00:06]} g6 {[%emt 0:00:17]} 3. b3 {[%emt 0:00:38]} Bg7 {[%emt 0:00:10]} 4. Bb2 {[%emt 0:00:06]} O-O {[%emt 0:00:08]} 5. g3 {[%emt 0:00:44]} c5 {[%emt 0:01:56]} 6. Bg2 {[%emt 0:00:07]} d6 {[%emt 0:01:23]} 7. O-O {[%emt 0:00:19]} Nc6 {[%emt 0:00:43]} 8. d4 {[%emt 0:00:32]} Bf5 {[%emt 0:02:15]} 9. Nbd2 {[%emt 0:11:34]} Nb4 {[%emt 0:12:26]} 10. Ne1 {[%emt 0:00:43]} cxd4 {[%emt 0:01:34]} 11. exd4 {[%emt 0:00:49]} Bg4 {[%emt 0:07:34]} 12. Ndf3 {[%emt 0:04:11]} Rc8 {[%emt 0:06:07]} 13. c3 {[%emt 0:02:09]} Nc6 {[%emt 0:02:15]} 14. h3 {[%emt 0:00:28]} Bf5 {[%emt 0:00:52]} 15. Nh4 {[%emt 0:06:06]} Bd7 {[%emt 0:10:56]} 16. Nd3 {[%emt 0:05:56]} Qb6 {[%emt 0:03:46]} 17. Re1 {[%emt 0:02:47]} e5 {[%emt 0:03:38]} 18. d5 {[%emt 0:12:45]} Ne7 {[%emt 0:02:28]} 19. c4 {[%emt 0:02:21]} e4 {[%emt 0:06:11]} 20. Bxe4 {[%emt 0:04:11]} Nxe4 {[%emt 0:00:22]} 21. Bxg7 {[%emt 0:04:11]} Kxg7 {[%emt 0:04:10]} 22. Rxe4 {[%emt 0:00:27]} Rce8 {[%emt 0:01:25]} 23. Qe2 {[%emt 0:03:24]} Ng8 {[%emt 0:07:20]} 24. Qb2+ {[%emt 0:02:49]} f6 {[%emt 0:00:53]} 25. Rae1 {[%emt 0:08:07]} Kf7 {[%emt 0:18:39]} 26. Rxe8 {[%emt 0:01:50]} Rxe8 {[%emt 0:00:03]} 27. Rxe8 {[%emt 0:00:06]} Bxe8 {[%emt 0:00:10]} 28. Nf3 {[%emt 0:07:26]} Bd7 {[%emt 0:00:21]} 29. g4 {[%emt 0:01:00]} Ne7 {[%emt 0:02:41]} 30. Nf4 {[%emt 0:03:17]} Qd8 {[%emt 0:01:05]} 31. Nd4 {[%emt 0:05:17]} Qf8 {[%emt 0:00:27]} 32. Qe2 {[%emt 0:02:35]} Qh6 {[%emt 0:00:51]} 33. Qe3 {[%emt 0:01:23]} f5 {[%emt 0:00:43]} 34. f3 {[%emt 0:02:22]} a6 {[%emt 0:01:50]} 35. Nde6 {[%emt 0:04:21]} Bc8 {[%emt 0:00:13]} 36. g5 {[%emt 0:01:53]} Qh4 {[%emt 0:00:06]} 37. Qf2 {[%emt 0:00:13]} Qxf2+ {[%emt 0:00:57]} 38. Kxf2 {[%emt 0:00:03]} b6 {[%emt 0:01:22]} 39. Ke3 {[%emt 0:00:11]} a5 {[%emt 0:00:09]} 40. h4 {[%emt 0:00:50]} Bd7 {[%emt 0:01:12]} 41. Kd4 {[%emt 0:04:48]} Nc8 {[%emt 0:05:29]} 42. Nc7 {[%emt 0:08:06]} Kg7 {[%emt 0:05:46]} 43. h5 {[%emt 0:03:41]} Kf7 {[%emt 0:01:40]} 44. h6 {[%emt 0:01:19]} Na7 {[%emt 0:01:35]} 45. Nce6 {[%emt 0:01:37]} Be8 {[%emt 0:01:31]} 46. a3 {[%emt 0:03:12]} Ke7 {[%emt 0:02:47]} 47. Ne2 {[%emt 0:12:42]} Bf7 {[%emt 0:00:48]} 48. N6f4 {[%emt 0:00:00]} Be8 {[%emt 0:02:00]} 49. Nc3 {[%emt 0:00:00]} Nc8 {[%emt 0:01:02]} 50. b4 {[%emt 0:00:00]} axb4 {[%emt 0:01:00]} 51. axb4 {[%emt 0:00:00]} Na7 {[%emt 0:02:33]} 52. c5 {[%emt 0:00:00]} bxc5+ {[%emt 0:00:03]} 53. bxc5 {[%emt 0:00:00]} dxc5+ {[%emt 0:00:02]} 54. Kxc5 {[%emt 0:00:00]} Nc8 {[%emt 0:00:03]} 55. d6+ {[%emt 0:00:00]} Nxd6 {[%emt 0:05:40]} 56. Ncd5+ {[%emt 0:00:00]} Kd7 {[%emt 0:00:06]} 57. Nf6+ {[%emt 0:00:00]} Ke7 {[%emt 0:00:34]} 58. Nxe8 {[%emt 0:00:00]} Nxe8 {[%emt 0:00:06]} 59. Nxg6+ {[%emt 0:00:00]} Kf7 {[%emt 0:01:39]} 60. Nf4 {[%emt 0:03:07]} Nf6 {[%emt 0:03:25]} 61. gxf6 {[%emt 0:00:19]} Kxf6 {[%emt 0:00:02]} 62. Kd6 {[%emt 0:00:19]} Kg5 {[%emt 0:00:04]} 63. Ke5 {[%emt 0:00:12]} 1-0

[Event "Frauenbundesliga 2024-25"]
[Site "Germany"]
[Date "2024.11.16"]
[Round "1.8"]
[White "Lubbe, Melanie"]
[Black "Wagner, Dinara"]
[Result "1/2-1/2"]
[Annotator "TA"]
[ECO "C54"]
[WhiteElo "2233"]
[BlackElo "2437"]
[PlyCount "28"]
[EventDate "2024.11.06"]
[EventType "team-tourn"]
[EventCountry "GER"]
[SourceTitle "playchess.com"]
[Source "ChessBase"]
[SourceQuality "1"]
[TimeControl "40/5400+30:1800+30"]

{[%evp 14,28,24,10,17,2,26,17,23,23,26,3,20,16,29,13,18]} 1. e4 {[%emt 1:31:00]} e5 {[%emt 1:31:00]} 2. Bc4 {[%emt 0:00:30]} Nf6 {[%emt 0:00:30]} 3. d3 {[%emt 0:00:30]} Bc5 {[%emt 0:00:30]} 4. Nf3 {[%emt 0:00:30]} Nc6 {[%emt 0:00:30]} 5. O-O {[%emt 0:00:30]} d6 {[%emt 0:00:30]} 6. c3 {[%emt 0:00:30]} a6 {[%emt 0:00:30]} 7. a4 {[%emt 0:00:30]} Ba7 {[%emt 0:00:30]} 8. b4 {[%emt 0:00:30][%cal Bb2b4,Bb4b5][%mdl 32]} O-O {[%emt 0:00:30]} 9. h3 {[%emt 0:00:30]} Re8 {[%emt 0:00:30]} 10. Re1 {[%emt 0:00:30]} Be6 {[%emt 0:00:30]} 11. Bxe6 {[%emt 0:00:30]} Rxe6 {[%emt 0:00:30]} 12. Ra2 {[%emt 0:00:30]} d5 {[%emt 0:00:30]} 13. b5 {[%emt 0:00:30]} Nb8 {[%emt 0:00:30]} 14. exd5 {[%emt 0:00:30]} Qxd5 {[%emt 0:00:30] A rather calm draw.   Weighted Error Value: White=0.11 (very precise) /Black=0.09 (flawless) .  OK:         	White=2     	Black=2} 1/2-1/2

[Event "Frauenbundesliga 2024-25"]
[Site "Germany"]
[Date "2024.11.16"]
[Round "1.9"]
[White "Mammadzada, Gunay"]
[Black "Ziegenfuss, Antonia"]
[Result "1-0"]
[Annotator "TA"]
[ECO "B90"]
[WhiteElo "2417"]
[BlackElo "2187"]
[PlyCount "77"]
[EventDate "2024.11.06"]
[EventType "team-tourn"]
[EventCountry "GER"]
[SourceTitle "playchess.com"]
[Source "ChessBase"]
[SourceQuality "1"]
[TimeControl "40/5400+30:1800+30"]

{[%evp 12,77,17,0,5,0,20,0,6,8,18,14,20,12,31,36,16,0,0,-28,0,-14,-25,-10,-6,-10,0,0,126,-48,10,0,98,102,104,92,103,99,110,88,233,227,238,222,234,231,327,319,286,279,329,310,327,263,441,429,420,412,674,670,1202,1161,29973,29973,29961,29963,29949,11372]} 1. e4 {[%emt 1:31:00]} c5 {[%emt 1:31:00]} 2. Nf3 {[%emt 0:00:30]} d6 3. d4 {[%emt 0:00:30]} cxd4 {[%emt 0:01:00]} 4. Nxd4 {[%emt 0:00:30]} Nf6 {[%emt 0:00:30]} 5. Nc3 {[%emt 0:00:30]} a6 6. Bd3 {[%emt 0:00:30]} e5 7. Nde2 {[%emt 0:00:30]} Nc6 8. O-O {[%emt 0:00:30]} Be7 9. Nd5 {[%emt 0:00:30]} Nxd5 {The position is equal.} 10. exd5 {[%emt 0:00:30]} Nb4 11. Bc4 {[%emt 0:00:30][%cal Bd3c4,Bc4b3,Bb3c2][%mdl 32]} Qc7 12. Bb3 {[%emt 0:00:30] a3 would now be deadly.} a5 13. c3 {[%emt 0:00:30]} Na6 14. Bc2 {[%emt 0:00:30]} O-O 15. h3 {[%emt 0:00:30]} Nc5 16. Be3 {[%emt 0:00:30]} f5 17. f4 {[%emt 0:00:30]} g6 18. Qd2 {[%emt 0:00:30]} b5 19. Rad1 {[%emt 0:00:30]} Bb7 {[#]} (19... e4 $11 {keeps the balance.}) 20. Kh2 $2 {[%emt 0:00:30]} (20. fxe5 $1 $16 {aiming for e6.} dxe5 21. b4) 20... Rad8 ({Black should try} 20... Bf6 $15) 21. g4 {[%emt 0:00:30] gxf5 is the strong threat.} Bc8 {[#]} (21... exf4 $11 22. Nxf4 g5) 22. gxf5 $1 $16 {[%emt 0:00:30]} Bxf5 23. Bxf5 {[%emt 0:00:30]} Rxf5 24. Ng3 {[%emt 0:00:30]} Rf7 25. f5 {[%emt 0:00:30] And now fxg6 would win.} (25. fxe5 {is interesting.} Rxf1 26. Rxf1 dxe5 27. Qf2) 25... Rdf8 {Loses the game.} (25... Bh4 $16 {is a better defense.} 26. Qg2 Kh8) 26. Bh6 $18 {[%emt 0:00:30]} Bh4 {White must now prevent ...Bxg3+.} 27. Qg2 {[%emt 0:00:30]} Bxg3+ 28. Qxg3 {[%emt 0:00:30]} Rxf5 ({Not} 28... Ne4 $2 29. Qg2 Nf6 30. fxg6 $18) (28... Qe7 $142 29. Bxf8 Qxf8) 29. Bxf8 {[%emt 0:00:30]} Rxf8 30. Rxf8+ {[%emt 0:00:30]} Kxf8 {[%mdl 4096] Endgame. KQR-KQN} 31. Rf1+ {[%emt 0:00:30]} Kg8 32. Qg4 {[%emt 0:00:30]} b4 $2 (32... Qd7 {was necessary.} 33. Qf3 Qf5 34. Qxf5 gxf5 35. Rxf5 Kg7) 33. cxb4 {[%emt 0:00:30]} axb4 34. Qxb4 {[%emt 0:00:30]} Kg7 (34... Nd3 $142 35. Qc3 Qxc3 36. bxc3 Nc5) 35. Qh4 {[%emt 0:00:30]} Qb7 36. b4 {[%emt 0:00:30]} Na6 37. Qf6+ {[%emt 0:00:30] White mates.} Kh6 38. Qf8+ {[%emt 0:00:30]} Kh5 39. Qxd6 {[%emt 0:00:30] Weighted Error Value: White=0.16 (very precise) /Black=0.76.  Mistake:       	White=1     	Black=7      Inaccurate:     	White=1     	Black=2      OK:         	White=9     	Black=10     Best:        	White=4     	---        Strong:       	White=1     	---} 1-0

[Event "Frauenbundesliga 2024-25"]
[Site "Germany"]
[Date "2024.11.16"]
[Round "1.9"]
[White "Peglau, Dora"]
[Black "Koepke, Elena"]
[Result "1-0"]
[Annotator "RC"]
[ECO "D02"]
[WhiteElo "2102"]
[BlackElo "2237"]
[PlyCount "69"]
[EventDate "2024.11.06"]
[EventType "team-tourn"]
[EventCountry "GER"]
[SourceTitle "playchess.com"]
[Source "ChessBase"]
[SourceQuality "1"]
[TimeControl "40/5400+30:1800+30"]

1. Nf3 {[%emt 0:00:05]} d5 {[%emt 0:00:26]} 2. d4 {[%emt 0:00:45]} Nf6 {[%emt 0:00:10]} 3. g3 {[%emt 0:01:31]} Bf5 {[%emt 0:06:55]} 4. Bg2 {[%emt 0:00:24]} e6 {[%emt 0:01:20]} 5. Nh4 {[%emt 0:07:24]} c6 {[%emt 0:04:18]} 6. Nxf5 {[%emt 0:03:09]} exf5 {[%emt 0:05:07]} 7. O-O {[%emt 0:01:11]} Bd6 {[%emt 0:05:10]} 8. c4 {[%emt 0:05:43]} dxc4 {[%emt 0:17:23]} 9. Nd2 {[%emt 0:10:48]} O-O {[%emt 0:10:19]} 10. Nxc4 {[%emt 0:00:14]} Bc7 {[%emt 0:01:14]} 11. Qb3 {[%emt 0:06:39]} Bb6 {[%emt 0:15:56]} 12. Rd1 {[%emt 0:08:53]} Nbd7 {[%emt 0:05:19]} 13. Nd6 {[%emt 0:09:59]} Qe7 {[%emt 0:01:46]} 14. Bf4 {[%emt 0:06:55]} Qxe2 {[%emt 0:12:58]} 15. Bf3 {[%emt 0:11:41]} Qa6 {[%emt 0:02:35]} 16. Nxf5 {[%emt 0:05:09]} Rfe8 {[%emt 0:01:47]} 17. Nd6 {[%emt 0:00:33]} Re6 {[%emt 0:05:11]} 18. Re1 {[%emt 0:02:35]} Nf8 {[%emt 0:00:10]} 19. Be5 {[%emt 0:16:22]} Rd8 {[%emt 0:00:44]} 20. Be2 {[%emt 0:00:00]} Qa5 {[%emt 0:00:55]} 21. Nxb7 {[%emt 0:00:00]} Qd2 {[%emt 0:00:33]} 22. Nxd8 {[%emt 0:00:00]} Bxd8 {[%emt 0:00:05]} 23. Rad1 {[%emt 0:00:00]} Qh6 {[%emt 0:00:19]} 24. h4 {[%emt 0:00:00]} Ba5 {[%emt 0:00:35]} 25. Bf4 {[%emt 0:00:00]} Qg6 {[%emt 0:00:19]} 26. Bd3 {[%emt 0:00:00]} Qg4 {[%emt 0:00:29]} 27. Rxe6 {[%emt 0:00:00]} fxe6 {[%emt 0:00:02]} 28. Rc1 {[%emt 0:00:00]} Nd5 {[%emt 0:00:47]} 29. Be5 {[%emt 0:00:00]} Bb6 {[%emt 0:00:36]} 30. Qd1 {[%emt 0:00:00]} Qxd1+ {[%emt 0:00:41]} 31. Rxd1 {[%emt 0:00:00]} Nd7 {[%emt 0:00:10]} 32. Rc1 {[%emt 0:00:25]} Nxe5 {[%emt 0:01:18]} 33. dxe5 {[%emt 0:00:01]} c5 {[%emt 0:00:09]} 34. Bc4 {[%emt 0:00:44]} Kf7 {[%emt 0:00:21]} 35. Rd1 {[%emt 0:00:17]} 1-0

[Event "Frauenbundesliga 2024-25"]
[Site "Germany"]
[Date "2024.11.16"]
[Round "1.10"]
[White "Fuchs, Judith"]
[Black "Hejazipour, Mitra"]
[Result "1/2-1/2"]
[Annotator "RC"]
[ECO "B13"]
[WhiteElo "2225"]
[BlackElo "2309"]
[PlyCount "38"]
[EventDate "2024.11.06"]
[EventType "team-tourn"]
[EventCountry "GER"]
[SourceTitle "playchess.com"]
[Source "ChessBase"]
[SourceQuality "1"]
[TimeControl "40/5400+30:1800+30"]

1. d4 {[%emt 0:00:03]} Nf6 {[%emt 0:00:16]} 2. Bf4 {[%emt 0:00:06]} d5 {[%emt 0:00:18]} 3. e3 {[%emt 0:00:18]} c5 {[%emt 0:00:24]} 4. Nf3 {[%emt 0:01:31]} Nc6 {[%emt 0:03:42]} 5. Nbd2 {[%emt 0:00:29]} Bg4 {[%emt 0:01:17]} 6. c3 {[%emt 0:01:52]} cxd4 {[%emt 0:01:34]} 7. exd4 {[%emt 0:00:46]} e6 {[%emt 0:00:06]} 8. Qb3 {[%emt 0:14:52]} Qc8 {[%emt 0:03:37]} 9. Bd3 {[%emt 0:03:40]} Be7 {[%emt 0:03:14]} 10. O-O {[%emt 0:01:58]} O-O {[%emt 0:04:35]} 11. Qc2 {[%emt 0:05:08]} Bf5 {[%emt 0:05:03]} 12. Bxf5 {[%emt 0:06:00]} exf5 {[%emt 0:00:12]} 13. Bg5 {[%emt 0:04:51]} h6 {[%emt 0:06:45]} 14. Bxf6 {[%emt 0:02:45]} Bxf6 {[%emt 0:00:03]} 15. Qb3 {[%emt 0:03:32]} Qd7 {[%emt 0:00:42]} 16. Rfe1 {[%emt 0:00:44]} Rfe8 {[%emt 0:07:35]} 17. Rxe8+ {[%emt 0:06:34]} Rxe8 {[%emt 0:00:19]} 18. Re1 {[%emt 0:00:19]} Re6 {[%emt 0:08:00]} 19. Qc2 {[%emt 0:13:50]} g5 {[%emt 0:09:28]} 1/2-1/2

[Event "Frauenbundesliga 2024-25"]
[Site "Germany"]
[Date "2024.11.16"]
[Round "1.10"]
[White "Nebolsina, Vera"]
[Black "Peglau, Mirjam"]
[Result "1-0"]
[Annotator "RC"]
[ECO "C01"]
[WhiteElo "2201"]
[BlackElo "1964"]
[PlyCount "55"]
[EventDate "2024.11.06"]
[EventType "team-tourn"]
[EventCountry "GER"]
[SourceTitle "playchess.com"]
[Source "ChessBase"]
[SourceQuality "1"]
[TimeControl "40/5400+30:1800+30"]

1. e4 {[%emt 0:00:07]} e6 {[%emt 0:00:04]} 2. d4 {[%emt 0:00:56]} d5 {[%emt 0:00:02]} 3. exd5 {[%emt 0:00:10]} exd5 {[%emt 0:00:01]} 4. Nf3 {[%emt 0:00:28]} Nf6 {[%emt 0:00:59]} 5. Bd3 {[%emt 0:01:10]} Bd6 {[%emt 0:00:12]} 6. Qe2+ {[%emt 0:00:17]} Qe7 {[%emt 0:00:47]} 7. Qxe7+ {[%emt 0:00:10]} Bxe7 {[%emt 0:00:49]} 8. Bf4 {[%emt 0:02:38]} c6 {[%emt 0:01:09]} 9. O-O {[%emt 0:01:32]} O-O {[%emt 0:00:51]} 10. Re1 {[%emt 0:07:23]} Re8 {[%emt 0:01:38]} 11. h3 {[%emt 0:00:59]} Nbd7 {[%emt 0:05:13]} 12. Nbd2 {[%emt 0:06:26]} b6 {[%emt 0:03:04]} 13. a4 {[%emt 0:06:17]} Bb7 {[%emt 0:16:47]} 14. a5 {[%emt 0:02:28]} c5 {[%emt 0:03:46]} 15. Bb5 {[%emt 0:01:34]} a6 {[%emt 0:02:48]} 16. Bxd7 {[%emt 0:00:32]} Nxd7 {[%emt 0:00:02]} 17. axb6 {[%emt 0:00:09]} Nxb6 {[%emt 0:00:42]} 18. dxc5 {[%emt 0:02:32]} Bxc5 {[%emt 0:00:10]} 19. Nb3 {[%emt 0:00:06]} Rec8 {[%emt 0:15:49]} 20. Nxc5 {[%emt 0:03:58]} Rxc5 {[%emt 0:00:02]} 21. Re7 {[%emt 0:00:18]} Bc6 {[%emt 0:00:51]} 22. Be3 {[%emt 0:01:47]} Rb5 {[%emt 0:00:39]} 23. Nd4 {[%emt 0:00:50]} Rc5 {[%emt 0:00:17]} 24. Rxa6 {[%emt 0:07:01]} Rxa6 {[%emt 0:27:25]} 25. Nxc6 {[%emt 0:00:13]} h6 {[%emt 0:14:30]} 26. Bxc5 {[%emt 0:00:36]} Na4 {[%emt 0:00:05]} 27. Nb4 {[%emt 0:04:16]} Ra5 {[%emt 0:01:44]} 28. Bd4 {[%emt 0:01:06]} 1-0

[Event "Frauenbundesliga 2024-25"]
[Site "Germany"]
[Date "2024.11.16"]
[Round "1.11"]
[White "Zatonskih, Anna"]
[Black "Rogozenco, Teodora"]
[Result "1/2-1/2"]
[Annotator "RC"]
[ECO "D11"]
[WhiteElo "2303"]
[BlackElo "2012"]
[PlyCount "104"]
[EventDate "2024.11.06"]
[EventType "team-tourn"]
[EventCountry "GER"]
[SourceTitle "playchess.com"]
[Source "ChessBase"]
[SourceQuality "1"]
[TimeControl "40/5400+30:1800+30"]

1. d4 {[%emt 1:31:00]} d5 {[%emt 1:31:00]} 2. c4 {[%emt 0:00:30]} c6 {[%emt 0:00:30]} 3. Nf3 {[%emt 0:00:30]} Nf6 {[%emt 0:00:30]} 4. Qc2 {[%emt 0:00:30]} g6 {[%emt 0:00:30]} 5. Bf4 {[%emt 0:00:30]} Bf5 {[%emt 0:00:30]} 6. Qb3 {[%emt 0:00:30]} Qb6 {[%emt 0:00:30]} 7. e3 {[%emt 0:00:30]} Na6 {[%emt 0:00:30]} 8. Nc3 {[%emt 0:00:30]} Nb4 {[%emt 0:00:30]} 9. Rc1 {[%emt 0:00:30]} dxc4 {[%emt 0:00:30]} 10. Bxc4 {[%emt 0:00:30]} Nd3+ {[%emt 0:00:30]} 11. Bxd3 {[%emt 0:00:30]} Qxb3 {[%emt 0:00:30]} 12. axb3 Bxd3 {[%emt 0:00:30]} 13. Ne5 {[%emt 0:01:00]} Ba6 {[%emt 0:00:30]} 14. Nc4 {[%emt 0:00:30]} Bg7 {[%emt 0:00:30]} 15. Be5 {[%emt 0:00:30]} O-O {[%emt 0:00:30]} 16. f3 {[%emt 0:00:30]} Bh6 {[%emt 0:00:30]} 17. Kf2 {[%emt 0:00:30]} Nd5 {[%emt 0:00:30]} 18. Nxd5 {[%emt 0:00:30]} cxd5 {[%emt 0:00:30]} 19. Na3 {[%emt 0:00:30]} f6 {[%emt 0:00:30]} 20. Bf4 {[%emt 0:00:30]} Bxf4 {[%emt 0:00:30]} 21. exf4 {[%emt 0:00:30]} Rac8 {[%emt 0:00:30]} 22. Rc3 {[%emt 0:00:30]} Rc6 {[%emt 0:00:30]} 23. Rxc6 {[%emt 0:00:30]} bxc6 {[%emt 0:00:30]} 24. Rc1 {[%emt 0:00:30]} Rc8 {[%emt 0:00:30]} 25. Rc5 {[%emt 0:00:30]} Bd3 {[%emt 0:00:30]} 26. Ke3 {[%emt 0:00:30]} Bf5 {[%emt 0:00:30]} 27. Kd2 {[%emt 0:00:30]} Rb8 {[%emt 0:00:30]} 28. Kc3 {[%emt 0:00:30]} Rb6 {[%emt 0:00:30]} 29. Ra5 {[%emt 0:00:30]} a6 {[%emt 0:00:30]} 30. g4 {[%emt 0:00:30]} Bc8 {[%emt 0:00:30]} 31. Nc2 {[%emt 0:00:30]} h5 {[%emt 0:00:30]} 32. h3 {[%emt 0:00:30]} h4 {[%emt 0:00:30]} 33. Ne1 {[%emt 0:00:30]} Kf7 {[%emt 0:00:30]} 34. Nd3 {[%emt 0:00:30]} Ke6 {[%emt 0:00:30]} 35. b4 {[%emt 0:00:30]} Kd6 {[%emt 0:00:30]} 36. Ra1 {[%emt 0:00:30]} Rb5 {[%emt 0:00:30]} 37. Kb3 {[%emt 0:00:30]} Rb8 {[%emt 0:00:30]} 38. Ra5 {[%emt 0:00:30]} Ra8 {[%emt 0:00:30]} 39. Kc3 {[%emt 0:00:30]} Rb8 {[%emt 0:00:30]} 40. Ra1 {[%emt 0:00:30]} Rb5 {[%emt 0:00:30]} 41. Ra3 {[%emt 0:30:30]} Rb8 {[%emt 0:30:30]} 42. Ra1 {[%emt 0:00:30]} Ra8 {[%emt 0:00:30]} 43. Ra5 {[%emt 0:00:30]} Ra7 {[%emt 0:00:30]} 44. Ra1 {[%emt 0:00:30]} Rd7 {[%emt 0:00:30]} 45. Nc5 {[%emt 0:00:30]} Rc7 {[%emt 0:00:30]} 46. Nd3 {[%emt 0:00:30]} Ra7 {[%emt 0:00:30]} 47. Ra5 {[%emt 0:00:30]} Rd7 {[%emt 0:00:30]} 48. Ra1 {[%emt 0:00:30]} Rd8 {[%emt 0:00:30]} 49. Re1 {[%emt 0:00:30]} Re8 {[%emt 0:00:30]} 50. Re3 {[%emt 0:00:30]} Bd7 {[%emt 0:00:30]} 51. Re1 {[%emt 0:00:30]} Bc8 {[%emt 0:00:30]} 52. Re3 {[%emt 0:00:30]} Bd7 {[%emt 0:00:30]} 1/2-1/2